Workbook

Sheet OUTPUT
A3: M&I 2025 Sch A-6 F.Z27.XLSM
A4: 01/02/2025
A5: CENTRAL VALLEY PROJECT
A6: SUMMARY OF FY 2023 RESULTS OF M&I OPERATIONS, CUMULATIVE NET
A7: POSITION AS OF SEPTEMBER 30, 2023 AND DETERMINATION OF DEFICIT COSTS PER ACRE-FOOT
A8: 2025 M&I WATER RATES
A10: Category | B10: A) Contractor | C10: Related Footnotes | D10: B) Construction Repayment Cumulative Repayment at 9/30/2022 <PY Sch A-6> | E10: C) Construction Repayment Fiscal Year 2023 <Sch B-1> | F10: D) Construction Repayment Cumulative Repayment at 9/30/2023 (B+C) | G10: E) Deficit Cumulative Balance at 9/30/2022 <PY Sch A-6> | H10: F) Deficit Fiscal Year 2023 <Sch B-1> | I10: G) Deficit Cumulative Balance at 9/30/2023 (E+F) | J10: H) Present Worth Projected Deliveries 2024-2036 <Sch A-14> | K10: I) Contractor Deficit Cost Per A/F (G/H)
A11: Black Butte D&R | B11: County of Colusa | C11: - | D11: 5751.646515 | E11: 0 | F11: 5751.646515 | G11: 255.25 | H11: -3.31 | I11: 251.94 | J11: 68.838137 | K11: 3.66
A12: Black Butte D&R | B12: Elk Creek CSD | C12: - | D12: 3449.582949 | E12: 0 | F12: 3449.582949 | G12: 911.09 | H12: 33.27 | I12: 944.36 | J12: 124.986448 | K12: 7.56
A13: Black Butte D&R | B13: US Forest Service - BB | C13: - | D13: 1142.242872 | E13: 0 | F13: 1142.242872 | G13: 439.26 | H13: 14.45 | I13: 453.71 | J13: 64.027761 | K13: 7.09
A14: Black Butte D&R | B14: Whitney Const. | C14: - | D14: 5997.200256 | E14: 0 | F14: 5997.200256 | G14: 154.97 | H14: 6.28 | I14: 161.25 | J14: 34.937411 | K14: 4.62
A15: Clear Creek Unit | B15: Clear Creek CSD | C15: - | D15: 707029.2661 | E15: 0 | F15: 707029.2661 | G15: 6885.18 | H15: -4548.88 | I15: 2336.3 | J15: 14848.65808 | K15: 0.16
A16: Contra Costa Canal | B16: Contra Costa WD | C16: - | D16: 24327069.65 | E16: 0 | F16: 24327069.65 | G16: 1272196 | H16: -169006.6748 | I16: 1103189.33 | J16: 717070.1093 | K16: 1.54
A17: Cow Creek Unit | B17: Bella Vista WD | C17: 2/ | D17: 1945193.281 | E17: 0 | F17: 1945193.281 | G17: 40342.32 | H17: 174.16 | I17: 40516.48 | J17: 33647.82901 | K17: 0
A18: Cross Valley Canal | B18: County of Fresno | C18: - | D18: 26256.62491 | E18: 0 | F18: 26256.62491 | G18: 94339.7 | H18: 3205.88 | I18: 97545.58 | J18: 778.457377 | K18: 125.31
A19: Cross Valley Canal | B19: County of Tulare | C19: - | D19: 54547.08714 | E19: 0 | F19: 54547.08714 | G19: 271707.7 | H19: 8290.2 | I19: 279997.9 | J19: 1771.481813 | K19: 158.06 | L19: 0.095127
A20: Delta-Mendota Canal | B20: Byron Bethany ID | C20: - | D20: 228841.6711 | E20: 0 | F20: 228841.6711 | G20: 13384.73 | H20: -4971.181082 | I20: 8413.55 | J20: 8030.08349 | K20: 1.05
A21: Delta-Mendota Canal | B21: City of Tracy | C21: 2/ | D21: 4270247.288 | E21: 0 | F21: 4270247.288 | G21: 78729.47 | H21: -29935.6 | I21: 48793.87 | J21: 67482.02567 | K21: 0
A22: Delta-Mendota Canal | B22: Del Puerto WD | C22: - | D22: 5178.46741 | E22: 0 | F22: 5178.46741 | G22: -0.88 | H22: -0.63 | I22: -1.51 | J22: 69.317812 | K22: 0
A23: Delta-Mendota Canal | B23: Department of VA | C23: - | D23: 74909.18909 | E23: 0 | F23: 74909.18909 | G23: 10874.69 | H23: -1159.6 | I23: 9715.09 | J23: 3609.533222 | K23: 2.69
A24: Delta-Mendota Canal | B24: Panoche WD - DMC | C24: - | D24: 12862.68966 | E24: 0 | F24: 12862.68966 | G24: 1155.65 | H24: -1155.95 | I24: -0.3 | J24: 225.94248 | K24: 0
A25: Delta-Mendota Canal | B25: San Luis WD - DMC | C25: - | D25: 93412.43441 | E25: 0 | F25: 93412.43441 | G25: -6.04 | H25: -14 | I25: -20.04 | J25: 122.325549 | K25: 0
A26: Delta-Mendota Canal | B26: Santa Nella County WD | D26: 0 | E26: 0 | F26: 0 | G26: 0 | H26: 0 | I26: 0 | J26: 58.257837 | K26: 0
A27: Folsom D&R | B27: City of Folsom | C27: 2/, 3/ | D27: 265579.0421 | E27: -20293.73 | F27: 245285.3121 | G27: 25160.84 | H27: -23606.7 | I27: 1554.14 | J27: 34450.92308 | K27: 0
A28: Folsom D&R | B28: City of Roseville | C28: - | D28: 4723990.964 | E28: 0 | F28: 4723990.964 | G28: 152428.41 | H28: -97152.08 | I28: 55276.33 | J28: 204015.2499 | K28: 0.27
A29: Folsom D&R | B29: El Dorado ID - FD&R | C29: - | D29: 1060302.983 | E29: 197716 | F29: 1258018.983 | G29: 9290.41 | H29: -22320.35 | I29: -13029.94 | J29: 35201.85162 | K29: 0
A30: Folsom D&R | B30: Placer County WA | C30: - | D30: 183769.16 | E30: 0 | F30: 183769.16 | G30: 9928.24 | H30: 325.89 | I30: 10254.13 | J30: 47301.17446 | K30: 0.22
A31: Folsom D&R | B31: Sacramento County WA | C31: - | D31: 423636.762 | E31: 0 | F31: 423636.762 | G31: 81032.58 | H31: -30397.88 | I31: 50634.7 | J31: 26153.55623 | K31: 1.94
A32: Folsom D&R | B32: San Juan WD | C32: - | D32: 1145785.424 | E32: 0 | F32: 1145785.424 | G32: 0 | H32: -36370.9521 | I32: -36370.95 | J32: 10397.67096 | K32: 0
A33: Folsom-South Canal | B33: East Bay MUD | C33: 2/ | D33: 5451607.772 | E33: 0 | F33: 5451607.772 | G33: 3039327.7 | H33: -289505.36 | I33: 2749822.34 | J33: 48844.82782 | K33: 46.06
A34: Folsom-South Canal | B34: Sacramento County WA - FSC | C34: - | D34: 409321.4822 | E34: 0 | F34: 409321.4822 | G34: 559697.94 | H34: 82377.02 | I34: 642074.96 | J34: 38674.32731 | K34: 16.6
A35: Folsom-South Canal | B35: Sacramento MUD | C35: - | D35: 4244793.898 | E35: 0 | F35: 4244793.898 | G35: 124867.14 | H35: -35.13 | I35: 124832.01 | J35: 41134.44637 | K35: 3.03
A36: Friant Dam | B36: County of Madera | C36: - | D36: 24336.51247 | E36: 0 | F36: 24336.51247 | G36: 874.61 | H36: -6.8 | I36: 867.81 | J36: 751.519384 | K36: 1.15
A37: Friant Dam | B37: Fresno County WW#18 | C37: - | D37: 65078.37644 | E37: 0 | F37: 65078.37644 | G37: 9040.8 | H37: -266.54 | I37: 8774.26 | J37: 1236.594331 | K37: 7.1
A38: Friant-Kern Canal | B38: Arvin-Edison WSD | C38: - | D38: 558675.1243 | E38: 0 | F38: 558675.1243 | G38: 2806.23 | H38: -170.641917 | I38: 2635.59 | J38: 4697.592669 | K38: 0.56 | L38: 0.087023
A39: Friant-Kern Canal | B39: City of Fresno | C39: - | D39: 5938777.4 | E39: 0 | F39: 5938777.4 | G39: -113462.04 | H39: -208358.44 | I39: -321820.48 | J39: 408583.6157 | K39: 0
A40: Friant-Kern Canal | B40: City of Lindsay | C40: - | D40: 784612.3211 | E40: 0 | F40: 784612.3211 | G40: 54009.64 | H40: -1546 | I40: 52463.64 | J40: 16759.12796 | K40: 3.13
A41: Friant-Kern Canal | B41: City of Orange Cove | C41: - | D41: 516952.1548 | E41: 0 | F41: 516952.1548 | G41: 24720.47 | H41: -4197.48 | I41: 20522.99 | J41: 10522.77227 | K41: 1.95
A42: Friant-Kern Canal | B42: Delano-Earlimart ID | C42: - | D42: 19834.27086 | E42: 0 | F42: 19834.27086 | G42: -2177.98 | H42: -387.5718003 | I42: -2565.55 | J42: 2945.327177 | K42: 0
A43: Friant-Kern Canal | B43: Lindsay-Strathmore ID | C43: - | D43: 65211.34211 | E43: 0 | F43: 65211.34211 | G43: 0.08 | H43: -14.82109418 | I43: -14.74 | J43: 4680.990687 | K43: 0
A44: Friant-Kern Canal | B44: Shafter-Wasco ID | C44: 2/ | D44: 120795.8039 | E44: 0 | F44: 120795.8039 | G44: 3450.84 | H44: -561.75 | I44: 2889.09 | J44: 1454.380293 | K44: 0.08 | L44: 0.092501
A45: Friant-Kern Canal | B45: Terra Bella | C45: - | D45: 257473.006 | E45: 0 | F45: 257473.006 | G45: 16059.56 | H45: -16060.47 | I45: -0.91 | J45: 12590.6191 | K45: 0
A46: New Melones D & R | B46: Stockton-East WD | C46: - | D46: 2617079.003 | E46: 650575.95 | F46: 3267654.953 | G46: -0.3 | H46: -0.42 | I46: -0.72 | J46: 304717.6307 | K46: 0
A47: Sacramento River | B47: City of Redding - SR | C47: - | D47: 684215.7257 | E47: 15128.39753 | F47: 699344.1232 | G47: 104594.7 | H47: 0 | I47: 104594.7 | J47: 24797.54793 | K47: 4.22
A48: Sacramento River | B48: City of West Sacramento | C48: - | D48: 1252812.941 | E48: 0 | F48: 1252812.941 | G48: 19472.34 | H48: -12484.18 | I48: 6988.16 | J48: 46944.99528 | K48: 0.15
A49: Sacramento River | B49: Lake California POA | C49: - | D49: 37331.69515 | E49: 1631.400924 | F49: 38963.09607 | G49: 16.88 | H49: 0 | I49: 16.88 | J49: 1509.603506 | K49: 0.01
A50: Sacramento River | B50: Riverview Golf & CC | C50: - | D50: 5406.704653 | E50: 177.6440915 | F50: 5584.348745 | G50: 148.77 | H50: 0 | I50: 148.77 | J50: 189.740441 | K50: 0.78
A51: San Felipe Unit | B51: SB County WD - IB | C51: - | D51: 2101243.815 | E51: 354869 | F51: 2456112.815 | G51: 130010 | H51: -130010 | I51: 0 | J51: 60223.37645 | K51: 0
A52: San Felipe Unit | B52: SC Valley WD - IB | C52: - | D52: 49313872.27 | E52: 0 | F52: 49313872.27 | G52: -111650.89 | H52: -419570.77 | I52: -531221.66 | J52: 870085.2602 | K52: 0
A53: San Luis Canal - Fresno | B53: City of Avenal | C53: - | D53: 993952.8865 | E53: 0 | F53: 993952.8865 | G53: 36453.15 | H53: -158.67 | I53: 36294.48 | J53: 22306.68597 | K53: 1.63 | L53: 0.053537
A54: San Luis Canal - Fresno | B54: City of Coalinga | C54: - | D54: 2942022.992 | E54: 0 | F54: 2942022.992 | G54: 761400.39 | H54: -102119.27 | I54: 659281.12 | J54: 48938.75729 | K54: 13.47
A55: San Luis Canal - Fresno | B55: City of Huron | C55: - | D55: 549650.3471 | E55: 0 | F55: 549650.3471 | G55: 399842.89 | H55: -18432.35 | I55: 381410.54 | J55: 9326.776975 | K55: 40.89
A56: San Luis Canal - Fresno | B56: State of CA | C56: - | D56: 3816.52356 | E56: 0 | F56: 3816.52356 | G56: 77.53 | H56: -9.31 | I56: 68.22 | J56: 11.751841 | K56: 5.81 | L56: 0.09125
A57: San Luis Canal - Fresno | B57: Westlands WD | C57: - | D57: 2386063.156 | E57: 0 | F57: 2386063.156 | G57: -0.19 | H57: -0.51 | I57: -0.7 | J57: 28272.15078 | K57: 0
A58: San Luis Canal - Tracy | B58: Pacheco WD - SLC | C58: 1/ | D58: 4683.472227 | E58: 0 | F58: 4683.472227 | G58: 599.79 | H58: 49.71 | I58: 649.5 | J58: 105.840266 | K58: 6.14
A59: San Luis Canal - Tracy | B59: Panoche WD - SLC | C59: - | D59: 30116.14205 | E59: 0 | F59: 30116.14205 | G59: 5150.2 | H59: -5151.07 | I59: -0.87 | J59: 1496.381321 | K59: 0
A60: San Luis Canal - Tracy | B60: San Luis WD - SLC | C60: - | D60: 468583.628 | E60: 0 | F60: 468583.628 | G60: 4917.62 | H60: -4993.81 | I60: -76.19 | J60: 4728.571088 | K60: 0
A61: San Luis Canal - Tracy | B61: Santa Nella County WD | C61: - | D61: 0 | E61: 0 | F61: 0 | G61: 0 | H61: 4167.56 | I61: 4167.56 | J61: 620.905923 | K61: 6.71
A62: Shasta D&R | B62: Centerville CSD | C62: - | D62: 125414.0606 | E62: 0 | F62: 125414.0606 | G62: -1364.12 | H62: -681.34 | I62: -2045.46 | J62: 4676.913177 | K62: 0
A63: Shasta D&R | B63: Mountain Gate CSD | C63: - | D63: 110944.36 | E63: 0 | F63: 110944.36 | G63: 9484.07 | H63: -1668.51 | I63: 7815.56 | J63: 4431.927689 | K63: 1.76
A64: Shasta D&R | B64: Shasta CWA | C64: 2/ | D64: 28351.00736 | E64: 0 | F64: 28351.00736 | G64: 1155.15 | H64: -153.84 | I64: 1001.31 | J64: 843.822481 | K64: 0
A65: Spring Creek Conduit | B65: City of Redding - SCC | C65: - | D65: 507358.2613 | E65: 0 | F65: 507358.2613 | G65: 21513.66 | H65: -17237.46347 | I65: 4276.2 | J65: 47635.11842 | K65: 0.09
A66: Spring Creek Conduit | B66: Shasta CWA - SCC | C66: - | D66: 23470.46179 | E66: 0 | F66: 23470.46179 | G66: -8.91 | H66: 79.03 | I66: 70.12 | J66: 513.767283 | K66: 0.14
A67: Spring Creek Conduit | B67: Shasta CSD | C67: - | D67: 103223.439 | E67: 0 | F67: 103223.439 | G67: 3828.58 | H67: -360.97 | I67: 3467.61 | J67: 2443.303541 | K67: 1.42
A68: Tehama-Colusa Canal | B68: Colusa County WD | C68: - | D68: 70079.79362 | E68: 0 | F68: 70079.79362 | G68: 1268.24 | H68: -1269.02 | I68: -0.78 | J68: 1121.941407 | K68: 0
A69: Tehama-Colusa Canal | B69: Kanawha WD | C69: - | D69: 1672.025628 | E69: 0 | F69: 1672.025628 | G69: 172.45 | H69: -173.02 | I69: -0.57 | J69: 274.552874 | K69: 0
A70: Toyon Pipeline | B70: City of Redding - TP | C70: - | D70: 229325.4476 | E70: 0 | F70: 229325.4476 | G70: 179.71 | H70: -41 | I70: 138.71 | J70: 150.151129 | K70: 0.92
A71: Toyon Pipeline | B71: City of Shasta Lake | C71: - | D71: 1612338.364 | E71: 0 | F71: 1612338.364 | G71: -1.32 | H71: -22301.66 | I71: -22302.98 | J71: 10664.0688 | K71: 0
A72: Toyon Pipeline | B72: US Forest Service | C72: - | D72: 4961.842594 | E72: 0 | F72: 4961.842594 | G72: 163.73 | H72: 5.37 | I72: 169.1 | J72: 9.10962 | K72: 18.56
A73: Grand Total | B73: - | C73: - | D73: 124230412.5 | E73: 1199804.663 | F73: 125430217.1 | G73: 7175848.68 | H73: -1579843.156 | I73: 5596005.54 | J73: 3295444.031 | K73: -
V101: Change in Beginning
V102: - | W102: - | X102: - | Y102: - | Z102: - | AA102: - | AB102: - | AC102: - | AD102: - | AE102: - | AF102: - | AG102: - | AH102: - | AI102: - | AJ102: - | AK102: - | AL102: - | AM102: - | AN102: - | AO102: -
V103: Deficit Balance | AG103: Capital Repayment Balance
V104: - | W104: - | X104: - | Y104: - | Z104: - | AA104: - | AB104: - | AC104: - | AD104: - | AG104: - | AH104: - | AI104: - | AJ104: - | AK104: - | AL104: - | AM104: - | AN104: - | AO104: -
V105: Recorded in | Z105: Recorded in | AG105: Recorded in | AL105: Recorded in
V106: FY 1994 | Z106: FY 1995 | AG106: FY 1994 | AL106: FY 1995
S107: Contractors with Differences: | V107: Water Rates | Z107: Water Rates | AD107: Difference | AG107: Water Rates | AL107: Water Rates | AO107: Difference
S109: CCWD - Contra Costa Canal | AD109: =Z109-V109 -> 0 | AG109: 6557091.22 | AL109: 0 | AO109: =AL109-AG109 -> -6557091.22
S110: CCWD - Contra Loma D&R | AD110: 0 | AG110: 609838.5 | AL110: 0 | AO110: =AL110-AG110 -> -609838.5
S111: CCWD - New Facilities | AD111: 0 | AG111: 1352124 | AL111: 0 | AO111: =AL111-AG111 -> -1352124
S112: Pacheco WD - SLC | V112: -23895.25 | Z112: -24666 | AD112: -770.75
S113: Riverview Golf & CC | V113: 0 | Z113: 63.57 | AD113: 63.57 | AG113: 3876.58 | AL113: 3813.01 | AO113: =AL113-AG113 -> -63.57
S114: Union PUD | AD114: 0 | AG114: 3402.79 | AL114: 0 | AO114: =AL114-AG114 -> -3402.79
S115: San Benito County WD - OB | V115: -1456666.77 | Z115: -1403914.1 | AD115: 52752.67
S116: Santa Clara Valley WD - OB | V116: -25870326.79 | Z116: -26096608.42 | AD116: -226281.63
AD117: - | AO117: -
AD118: =SUM(AD109:AD117) -> -174236.14 | AO118: =SUM(AO109:AO117) -> -8522520.08
S120: Differences in Grand Total Balances | V120: -92032029.69 | Z120: -92206265.83 | AD120: =Z120-V120 -> -174236.14 | AG120: 16143321.41 | AL120: 7620801.34 | AO120: =AL120-AG120 -> -8522520.07
AD121: - | AO121: -
AD122: =AD118-AD120 -> -2.153683454e-09 | AO122: =AO118-AO120 -> -0.009999997914

Sheet Footnotes
A1: M&I 2025 Sch A-6 F.Z27.XLSM
A2: 01/02/2025
A3: CENTRAL VALLEY PROJECT
A4: SUMMARY OF FY 2023 RESULTS OF M&I OPERATIONS, CUMULATIVE NET
A5: POSITION AS OF SEPTEMBER 30, 2023 AND DETERMINATION OF DEFICIT COSTS PER ACRE-FOOT
A6: 2025 M&I WATER RATES
A8: Footnotes:
A9: 1/ Includes cumulative deficit of Pacheco WD - DMC through September 30, 1979.
A11: 2/ Deficit rate has been adjusted to reflect O&M deficit payments. The payments will be included in the 2024 accounting.
A13: Contractor Name | B13: Cumulative Deficit Balance at 9/30/2023 | C13: Payment Sch B-3B | D13: Adjusted Cumulative Deficit Balance at 9/30/2023 | E13: Projected Deliveries Present Worth | F13: Adjusted Deficit cost Per A/F
A14: Bella Vista WD | B14: =[1]OUTPUT!I17 -> 40516.48 | C14: 40874.34 | D14: =B14-C14 -> -357.86 | E14: =[1]OUTPUT!J17 -> 33647.82901 | F14: =IF(D14>0,ROUND(D14/E14,2),0) -> 0
A15: City of Tracy | B15: =[1]OUTPUT!I21 -> 48793.87 | C15: 52247.2 | D15: -3453.33 | E15: =[1]OUTPUT!J21 -> 67482.02567 | F15: 0
A16: City of Folsom | B16: =[1]OUTPUT!I27 -> 1554.14 | C16: =4744.79+20293.73 -> 25038.52 | D16: -23484.38 | E16: =[1]OUTPUT!J27 -> 34450.92308 | F16: 0
A17: East Bay MUD | B17: =[1]OUTPUT!I33 -> 2749822.34 | C17: =400000+100000 -> 500000 | D17: 2249822.34 | E17: =[1]OUTPUT!J33 -> 48844.82782 | F17: 46.06
A18: Shafter-Wasco ID | B18: =[1]OUTPUT!I44 -> 2889.09 | C18: 2765.88 | D18: 123.21 | E18: =[1]OUTPUT!J44 -> 1454.380293 | F18: 0.08
A19: Shasta County WA | B19: =[1]OUTPUT!I64 -> 1001.31 | C19: 1113.75 | D19: -112.44 | E19: =[1]OUTPUT!J64 -> 843.822481 | F19: 0
A21: 3/ Applied deficit to construction in error in 2024 rates
AD57: Change in Beginning
AD58: - | AE58: - | AF58: - | AG58: - | AH58: - | AI58: - | AJ58: - | AK58: - | AL58: - | AM58: - | AN58: - | AO58: - | AP58: - | AQ58: - | AR58: - | AS58: - | AT58: - | AU58: - | AV58: - | AW58: -
AD59: Deficit Balance | AO59: Capital Repayment Balance
AD60: - | AE60: - | AF60: - | AG60: - | AH60: - | AI60: - | AJ60: - | AK60: - | AL60: - | AO60: - | AP60: - | AQ60: - | AR60: - | AS60: - | AT60: - | AU60: - | AV60: - | AW60: -
AD61: Recorded in | AH61: Recorded in | AO61: Recorded in | AT61: Recorded in
AD62: FY 1994 | AH62: FY 1995 | AO62: FY 1994 | AT62: FY 1995
AA63: Contractors with Differences: | AD63: Water Rates | AH63: Water Rates | AL63: Difference | AO63: Water Rates | AT63: Water Rates | AW63: Difference
AA65: CCWD - Contra Costa Canal | AL65: =AH65-AD65 -> 0 | AO65: 6557091.22 | AT65: 0 | AW65: =AT65-AO65 -> -6557091.22
AA66: CCWD - Contra Loma D&R | AL66: 0 | AO66: 609838.5 | AT66: 0 | AW66: =AT66-AO66 -> -609838.5
AA67: CCWD - New Facilities | AL67: 0 | AO67: 1352124 | AT67: 0 | AW67: =AT67-AO67 -> -1352124
AA68: Pacheco WD - SLC | AD68: -23895.25 | AH68: -24666 | AL68: -770.75
AA69: Riverview Golf & CC | AD69: 0 | AH69: 63.57 | AL69: 63.57 | AO69: 3876.58 | AT69: 3813.01 | AW69: =AT69-AO69 -> -63.57
AA70: Union PUD | AL70: 0 | AO70: 3402.79 | AT70: 0 | AW70: =AT70-AO70 -> -3402.79
AA71: San Benito County WD - OB | AD71: -1456666.77 | AH71: -1403914.1 | AL71: 52752.67
AA72: Santa Clara Valley WD - OB | AD72: -25870326.79 | AH72: -26096608.42 | AL72: -226281.63
AL73: - | AW73: -
AL74: =SUM(AL65:AL73) -> -174236.14 | AW74: =SUM(AW65:AW73) -> -8522520.08
AA76: Differences in Grand Total Balances | AD76: -92032029.69 | AH76: -92206265.83 | AL76: =AH76-AD76 -> -174236.14 | AO76: 16143321.41 | AT76: 7620801.34 | AW76: =AT76-AO76 -> -8522520.07
AL77: - | AW77: -
AL78: =AL74-AL76 -> -2.153683454e-09 | AW78: =AW74-AW76 -> -0.009999997914
